[Event "Live Chess"]
[Site "Chess.com"]
[Date "2023.05.20"]
[Round "-"]
[White "KING_BOBBB"]
[Black "nigelst"]
[Result "0-1"]
[WhiteElo "521"]
[BlackElo "1847"]
[TimeControl "300"]
[EndTime "9:19:35 PDT"]
[Termination "nigelst won by resignation"]

1. e4 {[%clk 0:04:58.6]} 1... c6 {[%clk 0:04:59.1]} 2. Nc3 {[%clk 0:04:54.2]}
2... d5 {[%clk 0:04:58.6]} 3. d4 {[%clk 0:04:52.3]} 3... dxe4 {[%clk 0:04:57.1]}
4. Nxe4 {[%clk 0:04:50.8]} 4... Bf5 {[%clk 0:04:56.7]} 5. Bd3 {[%clk 0:04:48.4]}
5... Bxe4 {[%clk 0:04:55]} 6. Bxe4 {[%clk 0:04:48.3]} 6... Nf6 {[%clk
0:04:54.2]} 7. Qd3 {[%clk 0:04:42.9]} 7... e6 {[%clk 0:04:52.9]} 8. Nf3 {[%clk
0:04:40.9]} 8... Bd6 {[%clk 0:04:51.7]} 9. Bg5 {[%clk 0:04:37.9]} 9... O-O
{[%clk 0:04:49.4]} 10. Bxf6 {[%clk 0:04:37.4]} 10... Qxf6 {[%clk 0:04:47.7]} 11.
Ne5 {[%clk 0:04:35.8]} 11... g6 {[%clk 0:04:41]} 12. O-O {[%clk 0:04:26.5]}
12... Bxe5 {[%clk 0:04:39.7]} 13. dxe5 {[%clk 0:04:25]} 13... Qxe5 {[%clk
0:04:38.7]} 14. f4 {[%clk 0:04:23.6]} 14... Qc5+ {[%clk 0:04:36.7]} 15. Rf2
{[%clk 0:04:20.5]} 15... Na6 {[%clk 0:04:34.1]} 16. a3 {[%clk 0:04:13.2]} 16...
Rad8 {[%clk 0:04:32.5]} 17. b4 {[%clk 0:04:05.7]} 17... Qb6 {[%clk 0:04:18.2]}
18. Qc3 {[%clk 0:03:47]} 18... Rd7 {[%clk 0:04:10.7]} 19. a4 {[%clk 0:03:40.2]}
19... Rfd8 {[%clk 0:04:02]} 20. a5 {[%clk 0:03:32.1]} 20... Qd4 {[%clk
0:03:56.7]} 21. Qxd4 {[%clk 0:03:29.2]} 21... Rxd4 {[%clk 0:03:55.5]} 22. Bf3
{[%clk 0:03:28.5]} 22... Nxb4 {[%clk 0:03:50.6]} 23. c3 {[%clk 0:03:20.8]} 23...
Rxf4 {[%clk 0:03:37.9]} 24. cxb4 {[%clk 0:03:15.7]} 24... Rxb4 {[%clk
0:03:36.7]} 25. Rd1 {[%clk 0:03:11.5]} 25... Rxd1+ {[%clk 0:03:32.5]} 26. Bxd1
{[%clk 0:03:10.3]} 26... Rb1 {[%clk 0:03:30.6]} 27. Rf1 {[%clk 0:03:07.7]} 27...
Ra1 {[%clk 0:03:25.1]} 28. g3 {[%clk 0:02:57.4]} 28... Rxa5 {[%clk 0:03:23.6]}
29. h4 {[%clk 0:02:55.3]} 29... Rd5 {[%clk 0:03:18.6]} 30. Kg2 {[%clk
0:02:48.8]} 30... a5 {[%clk 0:03:16.4]} 31. Ba4 {[%clk 0:02:42.9]} 31... b5
{[%clk 0:03:13.4]} 32. Bb3 {[%clk 0:02:41.3]} 32... Rd3 {[%clk 0:03:08.1]} 33.
Rf3 {[%clk 0:02:39.6]} 33... Rd2+ {[%clk 0:03:05.8]} 34. Rf2 {[%clk 0:02:37.5]}
34... Rd4 {[%clk 0:02:56.2]} 35. Rc2 {[%clk 0:02:31]} 35... a4 {[%clk
0:02:53.8]} 36. Ba2 {[%clk 0:02:28.1]} 36... b4 {[%clk 0:02:48.5]} 37. Rxc6
{[%clk 0:02:26.1]} 37... Rd2+ {[%clk 0:02:47.3]} 38. Kf3 {[%clk 0:02:22.5]}
38... Rxa2 {[%clk 0:02:46.2]} 39. Rc8+ {[%clk 0:02:22]} 39... Kg7 {[%clk
0:02:44.5]} 40. Rb8 {[%clk 0:02:21.4]} 40... Rb2 {[%clk 0:02:42.7]} 41. Ke3
{[%clk 0:02:20.8]} 41... a3 {[%clk 0:02:41.9]} 42. Ra8 {[%clk 0:02:19.3]} 42...
a2 {[%clk 0:02:39.9]} 43. Kd3 {[%clk 0:02:17.8]} 43... b3 {[%clk 0:02:38.3]} 44.
Kc3 {[%clk 0:02:16.2]} 44... Rb1 {[%clk 0:02:36.9]} 45. Rxa2 {[%clk 0:02:12.5]}
45... bxa2 {[%clk 0:02:35.2]} 46. Kc2 {[%clk 0:02:12.4]} 46... a1=Q {[%clk
0:02:33.7]} 47. Kd3 {[%clk 0:02:11.9]} 47... Qa4 {[%clk 0:02:31.4]} 0-1

[Event "Live Chess"]
[Site "Chess.com"]
[Date "2023.05.20"]
[Round "-"]
[White "apl_trainer"]
[Black "PaulHumphreys"]
[Result "1-0"]
[WhiteElo "1507"]
[BlackElo "1365"]
[TimeControl "300"]
[EndTime "9:19:38 PDT"]
[Termination "apl_trainer won by resignation"]

1. d4 {[%clk 0:04:58.6]} 1... d5 {[%clk 0:04:55.8]} 2. c4 {[%clk 0:04:57.3]}
2... e6 {[%clk 0:04:53]} 3. Nc3 {[%clk 0:04:55.8]} 3... a6 {[%clk 0:04:49]} 4.
Nf3 {[%clk 0:04:37.7]} 4... Bb4 {[%clk 0:04:42.9]} 5. Qa4+ {[%clk 0:04:22.2]}
5... Nc6 {[%clk 0:04:38.8]} 6. cxd5 {[%clk 0:04:17.6]} 6... exd5 {[%clk
0:04:24.3]} 7. Bf4 {[%clk 0:04:15.6]} 7... b5 {[%clk 0:04:11.9]} 8. Qc2 {[%clk
0:04:10.3]} 8... Nge7 {[%clk 0:04:06.9]} 9. e3 {[%clk 0:04:08.1]} 9... Bf5
{[%clk 0:04:02.8]} 10. Bd3 {[%clk 0:04:05.2]} 10... Bxd3 {[%clk 0:03:55.7]} 11.
Qxd3 {[%clk 0:04:04.1]} 11... Ng6 {[%clk 0:03:43.9]} 12. Bg3 {[%clk 0:04:02.4]}
12... O-O {[%clk 0:03:42.5]} 13. Rc1 {[%clk 0:03:58.3]} 13... Rc8 {[%clk
0:03:25.5]} 14. O-O {[%clk 0:03:50.8]} 14... Na5 {[%clk 0:03:07.8]} 15. b3
{[%clk 0:03:40.5]} 15... Ba3 {[%clk 0:02:44.4]} 16. Rc2 {[%clk 0:03:36.2]} 16...
Bd6 {[%clk 0:02:41.8]} 17. Qf5 {[%clk 0:03:25.2]} 17... Bxg3 {[%clk 0:02:34.6]}
18. hxg3 {[%clk 0:03:23.9]} 18... c6 {[%clk 0:02:32.3]} 19. Rfc1 {[%clk
0:03:18.4]} 19... Ne7 {[%clk 0:02:18.8]} 20. Qh5 {[%clk 0:03:14.8]} 20... Nb7
{[%clk 0:01:59]} 21. Ne2 {[%clk 0:03:08.5]} 21... Nd6 {[%clk 0:01:53.3]} 22. Nf4
{[%clk 0:02:52.2]} 22... Ne4 {[%clk 0:01:34.6]} 23. Ng5 {[%clk 0:02:47.8]} 23...
Nf6 {[%clk 0:01:25.5]} 24. Qh3 {[%clk 0:02:38.4]} 24... h6 {[%clk 0:01:19.2]}
25. Nfe6 {[%clk 0:02:16.2]} 25... fxe6 {[%clk 0:00:58]} 26. Qxe6+ {[%clk
0:02:14.3]} 26... Kh8 {[%clk 0:00:46]} 27. Nf7+ {[%clk 0:02:12.9]} 27... Rxf7
{[%clk 0:00:43.5]} 28. Qxf7 {[%clk 0:02:11.9]} 28... Ne4 {[%clk 0:00:25.5]} 29.
Qf4 {[%clk 0:01:59]} 29... Ng6 {[%clk 0:00:19.1]} 30. Qg4 {[%clk 0:01:54.8]}
30... Rc7 {[%clk 0:00:13.8]} 31. Rxc6 {[%clk 0:01:49.1]} 1-0

[Event "Live Chess"]
[Site "Chess.com"]
[Date "2023.05.20"]
[Round "-"]
[White "Ian-Morley"]
[Black "Olisingapore"]
[Result "0-1"]
[WhiteElo "1045"]
[BlackElo "1955"]
[TimeControl "300"]
[EndTime "9:19:39 PDT"]
[Termination "Olisingapore won by resignation"]

1. e4 {[%clk 0:04:58.5]} 1... c5 {[%clk 0:04:57.8]} 2. Nf3 {[%clk 0:04:48.3]}
2... d6 {[%clk 0:04:55.2]} 3. Bb5+ {[%clk 0:04:46.8]} 3... Nd7 {[%clk
0:04:53.6]} 4. Bxd7+ {[%clk 0:04:45.9]} 4... Bxd7 {[%clk 0:04:52.6]} 5. O-O
{[%clk 0:04:45.2]} 5... Nf6 {[%clk 0:04:52.3]} 6. Re1 {[%clk 0:04:43.7]} 6... g6
{[%clk 0:04:49.6]} 7. c3 {[%clk 0:04:42.7]} 7... Bg7 {[%clk 0:04:49.3]} 8. d4
{[%clk 0:04:42]} 8... cxd4 {[%clk 0:04:45.5]} 9. cxd4 {[%clk 0:04:41.1]} 9...
Rc8 {[%clk 0:04:43.3]} 10. Nc3 {[%clk 0:04:32.6]} 10... O-O {[%clk 0:04:41.7]}
11. Be3 {[%clk 0:04:25.7]} 11... b5 {[%clk 0:04:28.1]} 12. a4 {[%clk 0:04:20.8]}
12... b4 {[%clk 0:04:24.8]} 13. Nd5 {[%clk 0:04:19.3]} 13... Nxd5 {[%clk
0:04:22.7]} 14. exd5 {[%clk 0:04:18.3]} 14... a5 {[%clk 0:04:19.3]} 15. b3
{[%clk 0:04:17.1]} 15... Qb6 {[%clk 0:04:10.2]} 16. Rc1 {[%clk 0:04:14.2]} 16...
Rc3 {[%clk 0:04:06.3]} 17. Rxc3 {[%clk 0:04:10.1]} 17... bxc3 {[%clk 0:04:06.2]}
18. Qc2 {[%clk 0:04:07.2]} 18... Rc8 {[%clk 0:04:04.9]} 19. Rc1 {[%clk
0:03:57.8]} 19... Bf5 {[%clk 0:04:02.5]} 20. Qe2 {[%clk 0:03:48]} 20... Qxb3
{[%clk 0:03:56.3]} 21. Nh4 {[%clk 0:03:45.4]} 21... c2 {[%clk 0:03:31.6]} 22.
Nxf5 {[%clk 0:03:29.5]} 22... gxf5 {[%clk 0:03:31.5]} 23. Qa6 {[%clk 0:03:10.5]}
23... Qc4 {[%clk 0:03:23.7]} 24. Qxc4 {[%clk 0:03:08.2]} 24... Rxc4 {[%clk
0:03:23.6]} 25. Kf1 {[%clk 0:03:04.2]} 25... Bxd4 {[%clk 0:03:22.1]} 26. Bxd4
{[%clk 0:03:00.5]} 26... Rxd4 {[%clk 0:03:21.5]} 27. Rxc2 {[%clk 0:02:59.9]}
27... Rxa4 {[%clk 0:03:21.1]} 28. Ke2 {[%clk 0:02:56.6]} 28... Re4+ {[%clk
0:03:18.4]} 29. Kd3 {[%clk 0:02:54.7]} 29... a4 {[%clk 0:03:17.1]} 30. Ra2
{[%clk 0:02:53.8]} 30... Kg7 {[%clk 0:03:15]} 31. f3 {[%clk 0:02:53]} 31... Rb4
{[%clk 0:03:03.3]} 32. Kc3 {[%clk 0:02:42]} 32... Rb3+ {[%clk 0:02:59.5]} 33.
Kc4 {[%clk 0:02:38.4]} 33... Rb1 {[%clk 0:02:50.1]} 34. Rxa4 {[%clk 0:02:36.7]}
34... Rh1 {[%clk 0:02:49.7]} 35. h3 {[%clk 0:02:34.9]} 35... Rh2 {[%clk
0:02:48.1]} 36. g4 {[%clk 0:02:34]} 36... Rxh3 {[%clk 0:02:47.1]} 37. gxf5
{[%clk 0:02:32.9]} 37... Rxf3 {[%clk 0:02:46.4]} 38. Kb5 {[%clk 0:02:29.2]}
38... Rxf5 {[%clk 0:02:45.4]} 39. Kc6 {[%clk 0:02:28.7]} 39... Kf6 {[%clk
0:02:43.1]} 40. Kd7 {[%clk 0:02:25.8]} 40... Rxd5 {[%clk 0:02:38.8]} 41. Rf4+
{[%clk 0:02:24.2]} 41... Rf5 {[%clk 0:02:37.9]} 42. Rh4 {[%clk 0:02:19.5]} 42...
h5 {[%clk 0:02:37.1]} 43. Rh1 {[%clk 0:02:15.2]} 43... Kg5 {[%clk 0:02:22.9]}
44. Kxe7 {[%clk 0:02:03]} 44... d5 {[%clk 0:02:15.7]} 45. Rg1+ {[%clk
0:02:01.2]} 45... Kf4 {[%clk 0:02:12.8]} 46. Rd1 {[%clk 0:01:56.7]} 46... h4
{[%clk 0:02:09.9]} 47. Rf1+ {[%clk 0:01:55.4]} 47... Ke4 {[%clk 0:02:07]} 48.
Re1+ {[%clk 0:01:50.5]} 48... Kf3 {[%clk 0:02:04.9]} 49. Rf1+ {[%clk 0:01:46.7]}
49... Kg4 {[%clk 0:02:03.1]} 50. Rg1+ {[%clk 0:01:45.4]} 50... Kh5 {[%clk
0:01:58.9]} 51. Kd6 {[%clk 0:01:39.8]} 51... d4 {[%clk 0:01:55.8]} 52. Rg8
{[%clk 0:01:36.9]} 52... Rf4 {[%clk 0:01:47.4]} 53. Ke7 {[%clk 0:01:29]} 53...
d3 {[%clk 0:01:43.4]} 54. Rd8 {[%clk 0:01:26.8]} 54... Rf3 {[%clk 0:01:40.7]}
55. Rh8+ {[%clk 0:01:23.7]} 55... Kg4 {[%clk 0:01:39.8]} 56. Rg8+ {[%clk
0:01:22.8]} 56... Kh3 {[%clk 0:01:37.4]} 57. Rg1 {[%clk 0:01:20.9]} 57... Kh2
{[%clk 0:01:35.3]} 58. Rd1 {[%clk 0:01:19.6]} 58... h3 {[%clk 0:01:34]} 59. Rd2+
{[%clk 0:01:18.1]} 59... Kg3 {[%clk 0:01:32.8]} 60. Kd6 {[%clk 0:01:13.1]} 60...
h2 {[%clk 0:01:32]} 0-1

[Event "Live Chess"]
[Site "Chess.com"]
[Date "2023.05.20"]
[Round "-"]
[White "Delacorta"]
[Black "TheSmoulderingMaster"]
[Result "0-1"]
[WhiteElo "1415"]
[BlackElo "1799"]
[TimeControl "300"]
[EndTime "9:19:41 PDT"]
[Termination "TheSmoulderingMaster won by resignation"]

1. d4 {[%clk 0:04:58.3]} 1... Nf6 {[%clk 0:04:58.8]} 2. Nf3 {[%clk 0:04:56.9]}
2... d6 {[%clk 0:04:56.8]} 3. e3 {[%clk 0:04:55.7]} 3... g6 {[%clk 0:04:56.2]}
4. c4 {[%clk 0:04:52.4]} 4... Bg7 {[%clk 0:04:55.5]} 5. Nc3 {[%clk 0:04:51]}
5... O-O {[%clk 0:04:47]} 6. h3 {[%clk 0:04:35.2]} 6... Nbd7 {[%clk 0:04:46.2]}
7. Bd3 {[%clk 0:04:27.2]} 7... Re8 {[%clk 0:04:41]} 8. e4 {[%clk 0:04:16.2]}
8... e5 {[%clk 0:04:40.2]} 9. d5 {[%clk 0:04:13.6]} 9... Nc5 {[%clk 0:04:37.2]}
10. Be3 {[%clk 0:04:04.5]} 10... Nh5 {[%clk 0:04:35]} 11. Bc2 {[%clk 0:03:47.7]}
11... f5 {[%clk 0:04:33.3]} 12. exf5 {[%clk 0:02:58.4]} 12... Bxf5 {[%clk
0:04:28.8]} 13. Bxf5 {[%clk 0:02:56]} 13... gxf5 {[%clk 0:04:28.2]} 14. Ng5
{[%clk 0:02:46.7]} 14... f4 {[%clk 0:04:24.2]} 15. Qxh5 {[%clk 0:02:41.1]} 15...
h6 {[%clk 0:04:22.6]} 16. Qf7+ {[%clk 0:02:17.9]} 16... Kh8 {[%clk 0:04:20.3]}
17. Ne6 {[%clk 0:02:16.6]} 17... Nxe6 {[%clk 0:04:11]} 18. dxe6 {[%clk
0:02:15.8]} 18... fxe3 {[%clk 0:04:10.5]} 19. fxe3 {[%clk 0:02:05.1]} 19... Re7
{[%clk 0:04:05.4]} 20. Qg6 {[%clk 0:01:52.8]} 20... Qf8 {[%clk 0:03:58.9]} 21.
Rf1 {[%clk 0:01:46.5]} 21... Qg8 {[%clk 0:03:55.5]} 22. Nd5 {[%clk 0:01:43.6]}
22... Rxe6 {[%clk 0:03:53.1]} 23. Nxc7 {[%clk 0:01:40.8]} 23... Rxg6 {[%clk
0:03:51.6]} 24. Nxa8 {[%clk 0:01:39.4]} 0-1

[Event "Live Chess"]
[Site "Chess.com"]
[Date "2023.05.20"]
[Round "-"]
[White "AyannaTang"]
[Black "Crowded_House"]
[Result "0-1"]
[WhiteElo "179"]
[BlackElo "1682"]
[TimeControl "300"]
[EndTime "9:19:47 PDT"]
[Termination "Crowded_House won by checkmate"]

1. e4 {[%clk 0:04:56.5]} 1... e6 {[%clk 0:04:59.5]} 2. Bc4 {[%clk 0:04:48.7]}
2... d5 {[%clk 0:04:58.6]} 3. exd5 {[%clk 0:04:44.2]} 3... exd5 {[%clk
0:04:58.1]} 4. Bb3 {[%clk 0:04:40.2]} 4... c6 {[%clk 0:04:56.6]} 5. Nf3 {[%clk
0:04:37.5]} 5... Bd6 {[%clk 0:04:55.6]} 6. d4 {[%clk 0:04:32.3]} 6... Ne7 {[%clk
0:04:54.9]} 7. Be3 {[%clk 0:04:27.1]} 7... O-O {[%clk 0:04:53.6]} 8. O-O {[%clk
0:04:25.3]} 8... Bg4 {[%clk 0:04:52.3]} 9. h3 {[%clk 0:04:14.6]} 9... Bh5 {[%clk
0:04:50.9]} 10. g4 {[%clk 0:04:11.7]} 10... Bg6 {[%clk 0:04:48.9]} 11. Nc3
{[%clk 0:04:06.8]} 11... Re8 {[%clk 0:04:44.7]} 12. Bg5 {[%clk 0:03:52.7]} 12...
f6 {[%clk 0:04:42.2]} 13. Be3 {[%clk 0:03:46.9]} 13... Nd7 {[%clk 0:04:38.7]}
14. Na4 {[%clk 0:03:32.7]} 14... b6 {[%clk 0:04:33.7]} 15. Qd2 {[%clk
0:03:12.5]} 15... Qc7 {[%clk 0:04:32]} 16. Qc3 {[%clk 0:03:06.8]} 16... Bf4
{[%clk 0:04:18.2]} 17. Rad1 {[%clk 0:02:46.1]} 17... Bxe3 {[%clk 0:04:12.4]} 18.
Qxe3 {[%clk 0:02:44.3]} 18... Nf5 {[%clk 0:04:00.1]} 19. gxf5 {[%clk 0:02:42.2]}
19... Rxe3 {[%clk 0:03:57.8]} 20. Rfe1 {[%clk 0:02:30.8]} 20... Rxe1+ {[%clk
0:03:54.5]} 21. Rxe1 {[%clk 0:02:29.5]} 21... Bxf5 {[%clk 0:03:49.1]} 22. Ne5
{[%clk 0:02:20.6]} 22... fxe5 {[%clk 0:03:45.3]} 23. dxe5 {[%clk 0:02:19.4]}
23... Nxe5 {[%clk 0:03:42.4]} 24. Nc3 {[%clk 0:02:14.4]} 24... Nf3+ {[%clk
0:03:40.9]} 25. Kg2 {[%clk 0:02:09.9]} 25... Nxe1+ {[%clk 0:03:39.4]} 26. Kf1
{[%clk 0:02:07.8]} 26... Nxc2 {[%clk 0:03:35.5]} 27. Bxc2 {[%clk 0:02:06.3]}
27... Bxc2 {[%clk 0:03:33.6]} 28. Ne2 {[%clk 0:02:00.1]} 28... Bd3 {[%clk
0:03:31.5]} 29. b4 {[%clk 0:01:54.7]} 29... Bxe2+ {[%clk 0:03:29.8]} 30. Kxe2
{[%clk 0:01:53.8]} 30... Qe5+ {[%clk 0:03:29.4]} 31. Kf3 {[%clk 0:01:52.5]}
31... Re8 {[%clk 0:03:28.7]} 32. Kg2 {[%clk 0:01:51]} 32... Qe4+ {[%clk
0:03:27.8]} 33. Kf1 {[%clk 0:01:49.9]} 33... Qb1+ {[%clk 0:03:26.3]} 34. Kg2
{[%clk 0:01:48.6]} 34... Re2 {[%clk 0:03:25.5]} 35. Kf3 {[%clk 0:01:47.6]} 35...
Qxa2 {[%clk 0:03:24.5]} 36. h4 {[%clk 0:01:38.4]} 36... Rxf2+ {[%clk 0:03:23.3]}
37. Ke3 {[%clk 0:01:36.6]} 37... Qd2# {[%clk 0:03:21.5]} 0-1

[Event "Live Chess"]
[Site "Chess.com"]
[Date "2023.05.20"]
[Round "-"]
[White "Hussamalhaidar"]
[Black "guptarayan"]
[Result "0-1"]
[WhiteElo "963"]
[BlackElo "571"]
[TimeControl "300"]
[EndTime "9:19:47 PDT"]
[Termination "guptarayan won by checkmate"]

1. b3 {[%clk 0:04:55.7]} 1... e5 {[%clk 0:04:58.5]} 2. Bb2 {[%clk 0:04:55.4]}
2... Nc6 {[%clk 0:04:55.8]} 3. Nf3 {[%clk 0:04:54.3]} 3... e4 {[%clk 0:04:52.5]}
4. Nd4 {[%clk 0:04:49.6]} 4... Bc5 {[%clk 0:04:49.9]} 5. Nxc6 {[%clk 0:04:48]}
5... dxc6 {[%clk 0:04:47.8]} 6. Bxg7 {[%clk 0:04:47.2]} 6... h5 {[%clk 0:04:40]}
7. Bxh8 {[%clk 0:04:45.8]} 7... Nf6 {[%clk 0:04:32.7]} 8. Bxf6 {[%clk
0:04:43.8]} 8... Qxf6 {[%clk 0:04:31.6]} 9. e3 {[%clk 0:04:23.7]} 9... Bg4
{[%clk 0:04:24]} 10. Be2 {[%clk 0:04:17.5]} 10... Bxe2 {[%clk 0:04:18.6]} 11.
Qxe2 {[%clk 0:04:15.8]} 11... Qg6 {[%clk 0:04:15.1]} 12. Nc3 {[%clk 0:04:10.1]}
12... Qxg2 {[%clk 0:04:11.1]} 13. O-O-O {[%clk 0:04:07.4]} 13... Ba3+ {[%clk
0:04:06.6]} 14. Kb1 {[%clk 0:04:05.3]} 14... b5 {[%clk 0:04:00.3]} 15. Qxh5
{[%clk 0:03:57.7]} 15... b4 {[%clk 0:03:57.3]} 16. Qh8+ {[%clk 0:03:53.9]} 16...
Ke7 {[%clk 0:03:53.1]} 17. Qxa8 {[%clk 0:03:49.8]} 17... bxc3 {[%clk 0:03:52.1]}
18. Qxc6 {[%clk 0:03:44.1]} 18... cxd2 {[%clk 0:03:50.2]} 19. Qxc7+ {[%clk
0:03:40.3]} 19... Ke6 {[%clk 0:03:47.8]} 20. Qd7+ {[%clk 0:03:36.5]} 20... Kxd7
{[%clk 0:03:44.8]} 21. Rxd2+ {[%clk 0:03:34.9]} 21... Ke6 {[%clk 0:03:37.6]} 22.
Rhd1 {[%clk 0:03:33.9]} 22... Qxh2 {[%clk 0:03:29.3]} 23. c4 {[%clk 0:03:32.3]}
23... f5 {[%clk 0:03:22.3]} 24. Rd5 {[%clk 0:03:28.2]} 24... f4 {[%clk
0:03:20.4]} 25. c5 {[%clk 0:03:24.2]} 25... fxe3 {[%clk 0:03:18.4]} 26. c6
{[%clk 0:03:17.4]} 26... exf2 {[%clk 0:03:16.5]} 27. R5d2 {[%clk 0:02:57.5]}
27... f1=Q {[%clk 0:03:07.2]} 28. Rxf1 {[%clk 0:02:46]} 28... Qxd2 {[%clk
0:03:05.5]} 29. c7 {[%clk 0:02:42.5]} 29... Qb2# {[%clk 0:03:03.9]} 0-1

[Event "Live Chess"]
[Site "Chess.com"]
[Date "2023.05.20"]
[Round "-"]
[White "Horseymobile"]
[Black "alanmike75"]
[Result "0-1"]
[WhiteElo "1273"]
[BlackElo "1505"]
[TimeControl "300"]
[EndTime "9:19:49 PDT"]
[Termination "alanmike75 won by resignation"]

1. d4 {[%clk 0:04:56.4]} 1... d5 {[%clk 0:04:58.3]} 2. c4 {[%clk 0:04:55.3]}
2... c6 {[%clk 0:04:56.9]} 3. Nf3 {[%clk 0:04:51.2]} 3... Nf6 {[%clk 0:04:56.1]}
4. Nc3 {[%clk 0:04:49.1]} 4... e6 {[%clk 0:04:54.6]} 5. e3 {[%clk 0:04:47.5]}
5... Bd6 {[%clk 0:04:53.2]} 6. Bd3 {[%clk 0:04:42.7]} 6... Nbd7 {[%clk 0:04:52]}
7. O-O {[%clk 0:04:41.1]} 7... O-O {[%clk 0:04:50.7]} 8. Qc2 {[%clk 0:04:34.9]}
8... Re8 {[%clk 0:04:48.5]} 9. c5 {[%clk 0:04:26.2]} 9... Bc7 {[%clk 0:04:46.6]}
10. b4 {[%clk 0:04:25.2]} 10... a6 {[%clk 0:04:45.2]} 11. Ng5 {[%clk 0:03:58.6]}
11... h6 {[%clk 0:04:40.8]} 12. Nxf7 {[%clk 0:03:52.1]} 12... Kxf7 {[%clk
0:04:38.6]} 13. Bg6+ {[%clk 0:03:51.4]} 13... Kg8 {[%clk 0:04:36.4]} 14. Bxe8
{[%clk 0:03:49.5]} 14... Qxe8 {[%clk 0:04:35.4]} 15. e4 {[%clk 0:03:35.9]} 15...
e5 {[%clk 0:04:25]} 16. exd5 {[%clk 0:02:52.6]} 16... cxd5 {[%clk 0:04:22.1]}
17. Re1 {[%clk 0:02:43.2]} 17... e4 {[%clk 0:04:14.5]} 18. f3 {[%clk 0:02:38.9]}
18... Qh5 {[%clk 0:04:12]} 19. h3 {[%clk 0:02:13.7]} 19... exf3 {[%clk
0:04:07.8]} 20. gxf3 {[%clk 0:02:11]} 20... Qxh3 {[%clk 0:04:04.2]} 21. Qg2
{[%clk 0:02:06.9]} 21... Qxg2+ {[%clk 0:03:58.8]} 22. Kxg2 {[%clk 0:02:05.8]}
22... Nf8 {[%clk 0:03:55.6]} 23. Rg1 {[%clk 0:01:58]} 23... Bd7 {[%clk
0:03:49.4]} 24. Kf2 {[%clk 0:01:57]} 24... Kh8 {[%clk 0:03:48.1]} 25. Be3 {[%clk
0:01:49.8]} 25... Re8 {[%clk 0:03:45.8]} 26. Ne2 {[%clk 0:01:33.9]} 26... Ne6
{[%clk 0:03:40.8]} 27. Rg6 {[%clk 0:01:27.3]} 27... Kh7 {[%clk 0:03:35.9]} 28.
Rag1 {[%clk 0:01:25.4]} 28... Rf8 {[%clk 0:03:31.8]} 29. Nf4 {[%clk 0:01:23]}
29... Nxf4 {[%clk 0:03:29.7]} 30. Bxf4 {[%clk 0:01:22.3]} 30... Bxf4 {[%clk
0:03:28.1]} 31. Rxg7+ {[%clk 0:01:21.6]} 31... Kh8 {[%clk 0:03:25.7]} 32. R1g6
{[%clk 0:01:11.4]} 32... Bf5 {[%clk 0:03:12.5]} 33. Rg2 {[%clk 0:00:53.7]} 33...
Nd7 {[%clk 0:02:47.8]} 34. Re7 {[%clk 0:00:42.9]} 34... Bg5 {[%clk 0:02:44.3]}
35. Re1 {[%clk 0:00:28.8]} 35... Bh4+ {[%clk 0:02:41.3]} 0-1

[Event "Live Chess"]
[Site "Chess.com"]
[Date "2023.05.20"]
[Round "-"]
[White "thrithik"]
[Black "PureMellowPlan"]
[Result "0-1"]
[WhiteElo "489"]
[BlackElo "605"]
[TimeControl "300"]
[EndTime "9:19:52 PDT"]
[Termination "PureMellowPlan won by checkmate"]

1. a3 {[%clk 0:04:57.2]} 1... e5 {[%clk 0:04:58.4]} 2. Nc3 {[%clk 0:04:53.4]}
2... Nf6 {[%clk 0:04:55.5]} 3. Ne4 {[%clk 0:04:52]} 3... Nxe4 {[%clk 0:04:51.3]}
4. d3 {[%clk 0:04:51.6]} 4... Nf6 {[%clk 0:04:50.3]} 5. e4 {[%clk 0:04:46.8]}
5... d5 {[%clk 0:04:48.3]} 6. Qf3 {[%clk 0:04:44.3]} 6... dxe4 {[%clk
0:04:45.3]} 7. Bd2 {[%clk 0:04:43.8]} 7... exf3 {[%clk 0:04:43]} 8. Be2 {[%clk
0:04:42.4]} 8... fxg2 {[%clk 0:04:40.8]} 9. Bf3 {[%clk 0:04:32.7]} 9... gxh1=Q
{[%clk 0:04:34.5]} 10. Bg2 {[%clk 0:04:32.2]} 10... Qxg1+ {[%clk 0:04:33]} 11.
Ke2 {[%clk 0:04:28.2]} 11... Qxa1 {[%clk 0:04:32.2]} 12. b3 {[%clk 0:04:25.8]}
12... Qxa3 {[%clk 0:04:30.3]} 13. b4 {[%clk 0:04:24.2]} 13... Qd7 {[%clk
0:04:25]} 14. Be3 {[%clk 0:04:16.8]} 14... Qxb4 {[%clk 0:04:19.5]} 15. Bd2
{[%clk 0:04:08.6]} 15... Qbg4+ {[%clk 0:04:15.4]} 16. Bf3 {[%clk 0:04:05.8]}
16... Qxf3+ {[%clk 0:04:12.3]} 17. Kxf3 {[%clk 0:04:02]} 17... Qd5+ {[%clk
0:04:09.3]} 18. Ke2 {[%clk 0:04:00.1]} 18... Bc5 {[%clk 0:04:04.8]} 19. Kd1
{[%clk 0:03:55.5]} 19... Qd4 {[%clk 0:04:01.9]} 20. c3 {[%clk 0:03:53.2]} 20...
Qxf2 {[%clk 0:04:00.4]} 21. Be1 {[%clk 0:03:50]} 21... Qf3+ {[%clk 0:03:56.4]}
22. Kd2 {[%clk 0:03:41.1]} 22... Qe3+ {[%clk 0:03:50.5]} 23. Kc2 {[%clk
0:03:36.4]} 23... Qxe1 {[%clk 0:03:48.5]} 24. d4 {[%clk 0:03:30.1]} 24... exd4
{[%clk 0:03:44.1]} 25. cxd4 {[%clk 0:03:28.1]} 25... Bxd4 {[%clk 0:03:43.3]} 26.
Kb3 {[%clk 0:03:26.8]} 26... Qc3+ {[%clk 0:03:41.9]} 27. Ka4 {[%clk 0:03:23.1]}
27... Bc5 {[%clk 0:03:40.9]} 28. Kb5 {[%clk 0:03:21.2]} 28... Qb4# {[%clk
0:03:39.1]} 0-1